[Event "Titled Tuesday Blitz June 8 2021"]
[White "Gavrilescu, David"]
[Black "Bortnyk, Olexandr"]
[WhiteFideId "1227190"]
[BlackFideId "14120828"]
[WhiteElo "2370"]
[BlackElo "2723"]
[Result "0-1"]
[Round "11"]
[TimeControl "180+1"]
[Date "2021.06.08"]
[WhiteClock "0:00:40"]
[BlackClock "0:00:06"]

1. e4 {[%clk 0:03:00]}  Nf6 {[%clk 0:02:59]} 2. e5 {[%clk 0:03:00]}  Nd5 {[%clk 0:02:59]} 3. d4 {[%clk 0:03:01]}  d6 {[%clk 0:03:00]} 4. Nf3 {[%clk 0:03:02]}  dxe5 {[%clk 0:03:00]} 5. Nxe5 {[%clk 0:03:02]}  g6 {[%clk 0:03:01]} 6. Bc4 {[%clk 0:03:00]}  c6 {[%clk 0:03:01]} 7. O-O {[%clk 0:02:59]}  Bg7 {[%clk 0:03:01]} 8. Re1 {[%clk 0:03:00]}  Be6 {[%clk 0:02:56]} 9. Bb3 {[%clk 0:02:59]}  Nd7 {[%clk 0:02:48]} 10. Nxd7 {[%clk 0:02:55]}  Qxd7 {[%clk 0:02:47]} 11. c3 {[%clk 0:02:55]}  O-O {[%clk 0:02:43]} 12. Nd2 {[%clk 0:02:55]}  Nc7 {[%clk 0:02:01]} 13. Nf3 {[%clk 0:02:42]}  Bxb3 {[%clk 0:01:57]} 14. axb3 {[%clk 0:02:39]}  a6 {[%clk 0:01:56]} 15. b4 {[%clk 0:02:38]}  Rfe8 {[%clk 0:01:52]} 16. h3 {[%clk 0:02:29]}  Rad8 {[%clk 0:01:33]} 17. Bf4 {[%clk 0:02:26]}  Nd5 {[%clk 0:01:29]} 18. Bg3 {[%clk 0:02:26]}  e6 {[%clk 0:01:08]} 19. Ne5 {[%clk 0:02:23]}  Qe7 {[%clk 0:01:02]} 20. Nc4 {[%clk 0:02:23]}  Bf6 {[%clk 0:00:59]} 21. Qf3 {[%clk 0:02:22]}  h5 {[%clk 0:00:56]} 22. Re2 {[%clk 0:02:16]}  Bg5 {[%clk 0:00:52]} 23. Rae1 {[%clk 0:02:15]}  Qf6 {[%clk 0:00:51]} 24. Qxf6 {[%clk 0:01:46]}  Bxf6 {[%clk 0:00:52]} 25. Nd6 {[%clk 0:01:45]}  Re7 {[%clk 0:00:52]} 26. Ne4 {[%clk 0:01:45]}  Kg7 {[%clk 0:00:45]} 27. Nxf6 {[%clk 0:01:35]}  Kxf6 {[%clk 0:00:44]} 28. Re5 {[%clk 0:01:19]}  Kg7 {[%clk 0:00:26]} 29. Bh4 {[%clk 0:01:19]}  f6 {[%clk 0:00:20]} 30. Rxe6 {[%clk 0:01:19]}  Rxe6 {[%clk 0:00:21]} 31. Rxe6 {[%clk 0:01:18]}  Kf7 {[%clk 0:00:22]} 32. Re1 {[%clk 0:01:11]}  Rd7 {[%clk 0:00:18]} 33. Bg3 {[%clk 0:01:09]}  Re7 {[%clk 0:00:18]} 34. Rxe7+ {[%clk 0:01:06]}  Kxe7 {[%clk 0:00:19]} 35. Kf1 {[%clk 0:01:07]}  Nb6 {[%clk 0:00:15]} 36. Bf4 {[%clk 0:01:03]}  Ke6 {[%clk 0:00:15]} 37. Ke2 {[%clk 0:01:02]}  Na4 {[%clk 0:00:13]} 38. Bc1 {[%clk 0:01:02]}  b5 {[%clk 0:00:13]} 39. Kd3 {[%clk 0:00:59]}  Kd5 {[%clk 0:00:12]} 40. b3 {[%clk 0:00:56]}  Nb6 {[%clk 0:00:13]} 41. g3 {[%clk 0:00:56]}  Ke6 {[%clk 0:00:11]} 42. c4 {[%clk 0:00:55]}  Nc8 {[%clk 0:00:11]} 43. h4 {[%clk 0:00:53]}  Nd6 {[%clk 0:00:10]} 44. Bf4 {[%clk 0:00:52]}  Nf5 {[%clk 0:00:07]} 45. Ke4 {[%clk 0:00:50]}  Ne7 {[%clk 0:00:06]} 46. Bc7 {[%clk 0:00:46]}  Kd7 {[%clk 0:00:06]} 47. Bb6 {[%clk 0:00:41]}  Ke6 {[%clk 0:00:06]} 48. Bc5 {[%clk 0:00:40]} 0-1


[Site "https://www.chess.com"]

[Event "Titled Tuesday Blitz June 8 2021"]
[White "Henderson de La Fuente, Lance"]
[Black "Khusnutdinov, Rustam"]
[WhiteFideId "32096585"]
[BlackFideId "13701703"]
[WhiteElo "2280"]
[BlackElo "2571"]
[Result "1-0"]
[Round "11"]
[TimeControl "180+1"]
[Date "2021.06.08"]
[WhiteClock "0:00:22"]
[BlackClock "0:00:38"]

1. e4 {[%clk 0:03:00]}  e6 {[%clk 0:02:58]} 2. d4 {[%clk 0:03:00]}  d5 {[%clk 0:02:58]} 3. Bd3 {[%clk 0:02:57]}  dxe4 {[%clk 0:02:54]} 4. Bxe4 {[%clk 0:02:58]}  Nf6 {[%clk 0:02:55]} 5. Bf3 {[%clk 0:02:57]}  c5 {[%clk 0:02:53]} 6. Ne2 {[%clk 0:02:56]}  Nc6 {[%clk 0:02:53]} 7. Be3 {[%clk 0:02:56]}  Be7 {[%clk 0:02:53]} 8. Nbc3 {[%clk 0:02:50]}  Qa5 {[%clk 0:02:40]} 9. O-O {[%clk 0:02:44]}  O-O {[%clk 0:02:39]} 10. Qe1 {[%clk 0:02:27]}  cxd4 {[%clk 0:02:37]} 11. Nxd4 {[%clk 0:02:27]}  Ne5 {[%clk 0:02:37]} 12. Be2 {[%clk 0:02:24]}  Bd7 {[%clk 0:02:36]} 13. Bf4 {[%clk 0:02:19]}  Nc6 {[%clk 0:02:24]} 14. Nxc6 {[%clk 0:01:53]}  Bxc6 {[%clk 0:02:25]} 15. Bd3 {[%clk 0:01:53]}  Rfd8 {[%clk 0:02:09]} 16. a4 {[%clk 0:01:41]}  Qb4 {[%clk 0:02:05]} 17. Be5 {[%clk 0:01:01]}  Ng4 {[%clk 0:01:47]} 18. Bg3 {[%clk 0:00:57]}  Qxb2 {[%clk 0:01:23]} 19. Nb5 {[%clk 0:00:37]}  Qb4 {[%clk 0:01:09]} 20. Qe2 {[%clk 0:00:34]}  a6 {[%clk 0:01:03]} 21. Nc7 {[%clk 0:00:33]}  Rac8 {[%clk 0:01:02]} 22. Rab1 {[%clk 0:00:27]}  Qxa4 {[%clk 0:00:58]} 23. Nxe6 {[%clk 0:00:27]}  Rxd3 {[%clk 0:00:38]} 24. cxd3 {[%clk 0:00:21]}  fxe6 {[%clk 0:00:38]} 25. Qxe6+ {[%clk 0:00:22]}  Kf8 {[%clk 0:00:38]} 26. Qxc8+ {[%clk 0:00:22]} 1-0


[Site "https://www.chess.com"]

[Event "Titled Tuesday Blitz June 8 2021"]
[White "Hess, Robert"]
[Black "Yilmaz, Mustafa"]
[WhiteFideId "2022036"]
[BlackFideId "6302718"]
[WhiteElo "2557"]
[BlackElo "2518"]
[Result "0-1"]
[Round "11"]
[TimeControl "180+1"]
[Date "2021.06.08"]
[WhiteClock "0:00:09"]
[BlackClock "0:00:10"]

1. e4 {[%clk 0:02:52]}  c5 {[%clk 0:02:58]} 2. Nc3 {[%clk 0:02:52]}  a6 {[%clk 0:02:55]} 3. g3 {[%clk 0:02:52]}  b5 {[%clk 0:02:53]} 4. Bg2 {[%clk 0:02:53]}  Bb7 {[%clk 0:02:53]} 5. Nge2 {[%clk 0:02:52]}  Nf6 {[%clk 0:02:41]} 6. O-O {[%clk 0:02:50]}  e5 {[%clk 0:02:41]} 7. d3 {[%clk 0:02:49]}  Be7 {[%clk 0:02:39]} 8. f4 {[%clk 0:02:49]}  d6 {[%clk 0:02:39]} 9. h3 {[%clk 0:02:40]}  O-O {[%clk 0:02:39]} 10. g4 {[%clk 0:02:40]}  Nc6 {[%clk 0:02:22]} 11. Ng3 {[%clk 0:02:36]}  Nd4 {[%clk 0:02:18]} 12. Nce2 {[%clk 0:02:23]}  Rc8 {[%clk 0:02:13]} 13. c3 {[%clk 0:02:23]}  Nxe2+ {[%clk 0:02:12]} 14. Qxe2 {[%clk 0:02:23]}  Re8 {[%clk 0:01:41]} 15. Nf5 {[%clk 0:01:42]}  c4 {[%clk 0:01:30]} 16. fxe5 {[%clk 0:01:17]}  dxe5 {[%clk 0:01:22]} 17. dxc4 {[%clk 0:01:12]}  Rxc4 {[%clk 0:01:20]} 18. Bg5 {[%clk 0:00:35]}  Qb6+ {[%clk 0:01:02]} 19. Kh2 {[%clk 0:00:21]}  Bd8 {[%clk 0:01:02]} 20. Rad1 {[%clk 0:00:17]}  Nxe4 {[%clk 0:01:01]} 21. Be3 {[%clk 0:00:11]}  Qc7 {[%clk 0:00:56]} 22. Bxe4 {[%clk 0:00:10]}  Bxe4 {[%clk 0:00:37]} 23. Nd6 {[%clk 0:00:11]}  Rf8 {[%clk 0:00:37]} 24. Nxc4 {[%clk 0:00:08]}  bxc4 {[%clk 0:00:38]} 25. Qf2 {[%clk 0:00:04]}  Bd3 {[%clk 0:00:36]} 26. Rfe1 {[%clk 0:00:05]}  f5 {[%clk 0:00:34]} 27. Bc5 {[%clk 0:00:05]}  Rf7 {[%clk 0:00:32]} 28. gxf5 {[%clk 0:00:05]}  Rxf5 {[%clk 0:00:29]} 29. Qe3 {[%clk 0:00:04]}  Bg5 {[%clk 0:00:26]} 30. Qg1 {[%clk 0:00:03]}  e4+ {[%clk 0:00:23]} 31. Kh1 {[%clk 0:00:03]}  Rxc5 {[%clk 0:00:23]} 32. Qg4 {[%clk 0:00:02]}  Re5 {[%clk 0:00:19]} 33. Rg1 {[%clk 0:00:02]}  e3 {[%clk 0:00:16]} 34. h4 {[%clk 0:00:03]}  Bf6 {[%clk 0:00:12]} 35. Qf4 {[%clk 0:00:02]}  Qc6+ {[%clk 0:00:11]} 36. Kh2 {[%clk 0:00:02]}  e2 {[%clk 0:00:10]} 37. Rde1 {[%clk 0:00:02]}  Qe6 {[%clk 0:00:09]} 38. Rg3 {[%clk 0:00:02]}  h5 {[%clk 0:00:08]} 39. Qf3 {[%clk 0:00:01]}  Re4 {[%clk 0:00:07]} 40. Qxh5 {[%clk 0:00:01]}  Qe5 {[%clk 0:00:07]} 41. Qxe5 {[%clk 0:00:01]}  Bxe5 {[%clk 0:00:07]} 42. Kg2 {[%clk 0:00:02]}  Bxg3 {[%clk 0:00:08]} 43. Kxg3 {[%clk 0:00:03]}  Re6 {[%clk 0:00:08]} 44. b3 {[%clk 0:00:04]}  Rg6+ {[%clk 0:00:08]} 45. Kf3 {[%clk 0:00:04]}  Rf6+ {[%clk 0:00:08]} 46. Ke3 {[%clk 0:00:04]}  Rf1 {[%clk 0:00:09]} 47. Kd2 {[%clk 0:00:04]}  Rxe1 {[%clk 0:00:09]} 48. Kxe1 {[%clk 0:00:05]}  Kf7 {[%clk 0:00:09]} 49. Kd2 {[%clk 0:00:05]}  Ke6 {[%clk 0:00:08]} 50. b4 {[%clk 0:00:06]}  Kd5 {[%clk 0:00:08]} 51. a4 {[%clk 0:00:06]}  Kc6 {[%clk 0:00:08]} 52. Ke1 {[%clk 0:00:06]}  Bc2 {[%clk 0:00:08]} 53. Kxe2 {[%clk 0:00:06]}  Bxa4 {[%clk 0:00:08]} 54. Ke3 {[%clk 0:00:07]}  Kd5 {[%clk 0:00:08]} 55. Kf4 {[%clk 0:00:07]}  Bc2 {[%clk 0:00:09]} 56. Kg5 {[%clk 0:00:07]}  Ke5 {[%clk 0:00:09]} 57. h5 {[%clk 0:00:07]}  Bh7 {[%clk 0:00:09]} 58. h6 {[%clk 0:00:07]}  g6 {[%clk 0:00:09]} 59. Kg4 {[%clk 0:00:07]}  Kf6 {[%clk 0:00:10]} 60. Kf4 {[%clk 0:00:08]}  g5+ {[%clk 0:00:10]} 61. Ke3 {[%clk 0:00:09]}  Kg6 {[%clk 0:00:09]} 62. Kd4 {[%clk 0:00:09]}  g4 {[%clk 0:00:10]} 63. b5 {[%clk 0:00:09]}  axb5 {[%clk 0:00:10]} 0-1


[Site "https://www.chess.com"]

[Event "Titled Tuesday Blitz June 8 2021"]
[White "Lazavik, Denis"]
[Black "Shipov, Sergei"]
[WhiteFideId "13515110"]
[BlackFideId "4113624"]
[WhiteElo "2436"]
[BlackElo "2773"]
[Result "0-1"]
[Round "11"]
[TimeControl "180+1"]
[Date "2021.06.08"]
[WhiteClock "0:00:06"]
[BlackClock "0:00:13"]

1. d4 {[%clk 0:02:59]}  d5 {[%clk 0:02:59]} 2. c4 {[%clk 0:02:59]}  e6 {[%clk 0:02:58]} 3. Nf3 {[%clk 0:02:59]}  c5 {[%clk 0:02:58]} 4. cxd5 {[%clk 0:02:57]}  exd5 {[%clk 0:02:59]} 5. g3 {[%clk 0:02:57]}  Nc6 {[%clk 0:02:58]} 6. Bg2 {[%clk 0:02:57]}  cxd4 {[%clk 0:02:58]} 7. Nxd4 {[%clk 0:02:55]}  Qb6 {[%clk 0:02:58]} 8. Nxc6 {[%clk 0:02:45]}  bxc6 {[%clk 0:02:58]} 9. O-O {[%clk 0:02:45]}  Nf6 {[%clk 0:02:58]} 10. Nc3 {[%clk 0:02:45]}  Be7 {[%clk 0:02:58]} 11. Na4 {[%clk 0:02:43]}  Qb5 {[%clk 0:02:54]} 12. Be3 {[%clk 0:02:36]}  Ba6 {[%clk 0:02:40]} 13. Re1 {[%clk 0:02:29]}  O-O {[%clk 0:02:34]} 14. b3 {[%clk 0:02:24]}  Rfe8 {[%clk 0:02:19]} 15. Bd4 {[%clk 0:02:03]}  c5 {[%clk 0:01:36]} 16. Bxf6 {[%clk 0:01:48]}  Bxf6 {[%clk 0:01:36]} 17. Rc1 {[%clk 0:01:49]}  Rxe2 {[%clk 0:01:24]} 18. Rxc5 {[%clk 0:01:42]}  Qd3 {[%clk 0:01:00]} 19. Qxe2 {[%clk 0:01:16]}  Qxe2 {[%clk 0:00:59]} 20. Rxe2 {[%clk 0:01:17]}  Bxe2 {[%clk 0:00:59]} 21. Bxd5 {[%clk 0:01:17]}  Rd8 {[%clk 0:00:58]} 22. Kg2 {[%clk 0:01:06]}  g6 {[%clk 0:00:29]} 23. Bc4 {[%clk 0:00:34]}  Rd2 {[%clk 0:00:29]} 24. Rd5 {[%clk 0:00:23]}  Rxa2 {[%clk 0:00:26]} 25. Bxe2 {[%clk 0:00:23]}  Rxe2 {[%clk 0:00:25]} 26. Nc5 {[%clk 0:00:23]}  Rb2 {[%clk 0:00:20]} 27. Rd3 {[%clk 0:00:22]}  a5 {[%clk 0:00:20]} 28. Kf3 {[%clk 0:00:21]}  Kg7 {[%clk 0:00:19]} 29. Rd7 {[%clk 0:00:20]}  Be5 {[%clk 0:00:18]} 30. Rd5 {[%clk 0:00:17]}  Bc3 {[%clk 0:00:17]} 31. Rd3 {[%clk 0:00:16]}  Bb4 {[%clk 0:00:17]} 32. Ne4 {[%clk 0:00:16]}  f5 {[%clk 0:00:18]} 33. Rd7+ {[%clk 0:00:13]}  Kf8 {[%clk 0:00:17]} 34. Nf6 {[%clk 0:00:14]}  h6 {[%clk 0:00:15]} 35. Kf4 {[%clk 0:00:11]}  Rxf2+ {[%clk 0:00:14]} 36. Ke5 {[%clk 0:00:06]}  Bc3+ {[%clk 0:00:13]} 37. Ke6 {[%clk 0:00:04]}  Re2+ {[%clk 0:00:13]} 38. Kd5 {[%clk 0:00:04]}  Bxf6 {[%clk 0:00:13]} 39. Ra7 {[%clk 0:00:05]}  Bc3 {[%clk 0:00:13]} 40. Rxa5 {[%clk 0:00:06]} 0-1


[Site "https://www.chess.com"]

[Event "Titled Tuesday Blitz June 8 2021"]
[White "Nguyen, Quoc Hy"]
[Black "Donchenko, Alexander"]
[WhiteFideId "12410853"]
[BlackFideId "24603295"]
[WhiteElo "1975"]
[BlackElo "2553"]
[Result "0-1"]
[Round "11"]
[TimeControl "180+1"]
[Date "2021.06.08"]
[WhiteClock "0:00:02"]
[BlackClock "0:00:33"]

1. d4 {[%clk 0:03:00]}  Nf6 {[%clk 0:02:59]} 2. c4 {[%clk 0:03:00]}  c6 {[%clk 0:02:59]} 3. Nc3 {[%clk 0:03:00]}  d5 {[%clk 0:03:00]} 4. Bg5 {[%clk 0:02:59]}  dxc4 {[%clk 0:02:59]} 5. e4 {[%clk 0:02:55]}  b5 {[%clk 0:02:56]} 6. e5 {[%clk 0:02:54]}  Nd5 {[%clk 0:02:56]} 7. a4 {[%clk 0:02:54]}  h6 {[%clk 0:02:54]} 8. Bh4 {[%clk 0:02:52]}  Qb6 {[%clk 0:02:39]} 9. axb5 {[%clk 0:02:37]}  Nxc3 {[%clk 0:02:39]} 10. bxc3 {[%clk 0:02:36]}  cxb5 {[%clk 0:02:39]} 11. Be2 {[%clk 0:02:34]}  e6 {[%clk 0:02:36]} 12. Rb1 {[%clk 0:02:29]}  Bb7 {[%clk 0:02:16]} 13. Nf3 {[%clk 0:02:15]}  a6 {[%clk 0:02:13]} 14. O-O {[%clk 0:02:09]}  Qc7 {[%clk 0:02:09]} 15. Nd2 {[%clk 0:01:53]}  Be7 {[%clk 0:01:58]} 16. Bxe7 {[%clk 0:01:51]}  Qxe7 {[%clk 0:01:58]} 17. f4 {[%clk 0:01:51]}  g6 {[%clk 0:01:53]} 18. Bf3 {[%clk 0:01:37]}  Bd5 {[%clk 0:01:53]} 19. f5 {[%clk 0:01:22]}  gxf5 {[%clk 0:01:48]} 20. Bxd5 {[%clk 0:01:22]}  exd5 {[%clk 0:01:49]} 21. Rxf5 {[%clk 0:01:22]}  Nd7 {[%clk 0:01:34]} 22. Qh5 {[%clk 0:01:19]}  Rh7 {[%clk 0:01:28]} 23. Rbf1 {[%clk 0:01:10]}  Qe6 {[%clk 0:01:12]} 24. Qh4 {[%clk 0:00:57]}  a5 {[%clk 0:01:04]} 25. Qg4 {[%clk 0:00:16]}  b4 {[%clk 0:00:58]} 26. Qg8+ {[%clk 0:00:15]}  Nf8 {[%clk 0:00:58]} 27. Rf6 {[%clk 0:00:15]}  Qe7 {[%clk 0:00:54]} 28. e6 {[%clk 0:00:15]}  O-O-O {[%clk 0:00:42]} 29. exf7 {[%clk 0:00:12]}  bxc3 {[%clk 0:00:41]} 30. Qg4+ {[%clk 0:00:11]}  Qd7 {[%clk 0:00:38]} 31. Qxd7+ {[%clk 0:00:10]}  Nxd7 {[%clk 0:00:35]} 32. Rc6+ {[%clk 0:00:08]}  Kb7 {[%clk 0:00:34]} 33. Rd6 {[%clk 0:00:08]}  Kc7 {[%clk 0:00:34]} 34. Nxc4 {[%clk 0:00:02]}  dxc4 {[%clk 0:00:33]} 0-1


[Site "https://www.chess.com"]

[Event "Titled Tuesday Blitz June 8 2021"]
[White "Priasmoro, Novendra"]
[Black "Grieve, Harry"]
[WhiteFideId "7105029"]
[BlackFideId "426520"]
[WhiteElo "2309"]
[BlackElo "2191"]
[Result "1/2-1/2"]
[Round "11"]
[TimeControl "180+1"]
[Date "2021.06.08"]
[WhiteClock "0:00:15"]
[BlackClock "0:00:18"]

1. Nf3 {[%clk 0:01:14]}  f5 {[%clk 0:02:58]} 2. d4 {[%clk 0:01:15]}  Nf6 {[%clk 0:02:58]} 3. g3 {[%clk 0:01:16]}  g6 {[%clk 0:02:58]} 4. Bg2 {[%clk 0:01:17]}  Bg7 {[%clk 0:02:59]} 5. O-O {[%clk 0:01:18]}  O-O {[%clk 0:03:00]} 6. c4 {[%clk 0:01:17]}  d6 {[%clk 0:03:00]} 7. Nc3 {[%clk 0:01:16]}  c6 {[%clk 0:03:01]} 8. d5 {[%clk 0:01:17]}  e5 {[%clk 0:03:01]} 9. dxe6 {[%clk 0:01:18]}  Bxe6 {[%clk 0:03:01]} 10. Qd3 {[%clk 0:01:18]}  Re8 {[%clk 0:02:58]} 11. Ng5 {[%clk 0:01:18]}  Na6 {[%clk 0:02:52]} 12. Nxe6 {[%clk 0:01:16]}  Rxe6 {[%clk 0:02:53]} 13. Bf4 {[%clk 0:01:16]}  Nc5 {[%clk 0:02:48]} 14. Qd2 {[%clk 0:01:15]}  Qe7 {[%clk 0:02:38]} 15. Rad1 {[%clk 0:01:13]}  Rd8 {[%clk 0:02:39]} 16. Qc2 {[%clk 0:01:08]}  Nfe4 {[%clk 0:02:31]} 17. Nxe4 {[%clk 0:01:08]}  Nxe4 {[%clk 0:02:32]} 18. Rfe1 {[%clk 0:01:03]}  h6 {[%clk 0:02:26]} 19. Rd3 {[%clk 0:01:01]}  Nc5 {[%clk 0:02:21]} 20. Rd2 {[%clk 0:00:58]}  Ne4 {[%clk 0:02:12]} 21. Rd3 {[%clk 0:00:59]}  Nc5 {[%clk 0:02:12]} 22. Re3 {[%clk 0:00:58]}  Ne4 {[%clk 0:01:58]} 23. Ra3 {[%clk 0:00:56]}  a6 {[%clk 0:01:54]} 24. Be3 {[%clk 0:00:55]}  d5 {[%clk 0:01:36]} 25. cxd5 {[%clk 0:00:56]}  Rxd5 {[%clk 0:01:37]} 26. Rd3 {[%clk 0:00:53]}  Red6 {[%clk 0:01:33]} 27. Qb3 {[%clk 0:00:51]}  Kh7 {[%clk 0:01:28]} 28. Red1 {[%clk 0:00:51]}  Rxd3 {[%clk 0:01:21]} 29. Rxd3 {[%clk 0:00:52]}  Rxd3 {[%clk 0:01:21]} 30. exd3 {[%clk 0:00:51]}  Nf6 {[%clk 0:01:15]} 31. h3 {[%clk 0:00:48]}  Qd7 {[%clk 0:01:14]} 32. Qc4 {[%clk 0:00:44]}  Nd5 {[%clk 0:01:13]} 33. Bd4 {[%clk 0:00:43]}  h5 {[%clk 0:00:46]} 34. Bxg7 {[%clk 0:00:39]}  Kxg7 {[%clk 0:00:46]} 35. Qd4+ {[%clk 0:00:37]}  Nf6 {[%clk 0:00:46]} 36. Qc4 {[%clk 0:00:38]}  Nd5 {[%clk 0:00:45]} 37. Bxd5 {[%clk 0:00:38]}  Qxd5 {[%clk 0:00:45]} 38. Qxd5 {[%clk 0:00:38]}  cxd5 {[%clk 0:00:46]} 39. d4 {[%clk 0:00:39]}  Kf6 {[%clk 0:00:37]} 40. f4 {[%clk 0:00:37]}  g5 {[%clk 0:00:33]} 41. fxg5+ {[%clk 0:00:31]}  Kxg5 {[%clk 0:00:34]} 42. Kf2 {[%clk 0:00:32]}  f4 {[%clk 0:00:27]} 43. Kf3 {[%clk 0:00:32]}  fxg3 {[%clk 0:00:26]} 44. Kxg3 {[%clk 0:00:33]}  h4+ {[%clk 0:00:21]} 45. Kf3 {[%clk 0:00:33]}  Kf5 {[%clk 0:00:22]} 46. Ke3 {[%clk 0:00:28]}  Kg5 {[%clk 0:00:21]} 47. a4 {[%clk 0:00:25]}  b6 {[%clk 0:00:17]} 48. Kf3 {[%clk 0:00:21]}  Kf5 {[%clk 0:00:17]} 49. Ke3 {[%clk 0:00:21]}  Kg5 {[%clk 0:00:18]} 50. b3 {[%clk 0:00:13]}  Kf5 {[%clk 0:00:17]} 51. Kf3 {[%clk 0:00:13]}  Kg5 {[%clk 0:00:17]} 52. Ke3 {[%clk 0:00:13]}  Kf5 {[%clk 0:00:18]} 53. b4 {[%clk 0:00:14]}  b5 {[%clk 0:00:15]} 54. a5 {[%clk 0:00:12]}  Kg5 {[%clk 0:00:15]} 55. Kf3 {[%clk 0:00:13]}  Kf5 {[%clk 0:00:16]} 56. Ke3 {[%clk 0:00:14]}  Kg5 {[%clk 0:00:17]} 57. Kf3 {[%clk 0:00:15]}  Kf5 {[%clk 0:00:18]} 58. Ke3 {[%clk 0:00:15]} 1/2-1/2


[Site "https://www.chess.com"]

[Event "Titled Tuesday Blitz June 8 2021"]
[White "Shahaliyev, Ismayil"]
[Black "Jones, Gawain C B"]
[WhiteFideId "13406388"]
[BlackFideId "409561"]
[WhiteElo "2105"]
[BlackElo "2657"]
[Result "1-0"]
[Round "11"]
[TimeControl "180+1"]
[Date "2021.06.08"]
[WhiteClock "0:00:41"]
[BlackClock "0:01:28"]

1. d4 {[%clk 0:03:00]}  Nf6 {[%clk 0:02:59]} 2. Nf3 {[%clk 0:03:00]}  c5 {[%clk 0:02:55]} 3. c3 {[%clk 0:02:58]}  b6 {[%clk 0:02:55]} 4. Bf4 {[%clk 0:02:55]}  Bb7 {[%clk 0:02:55]} 5. e3 {[%clk 0:02:54]}  e6 {[%clk 0:02:55]} 6. h3 {[%clk 0:02:54]}  Be7 {[%clk 0:02:54]} 7. Nbd2 {[%clk 0:02:52]}  d6 {[%clk 0:02:54]} 8. Bd3 {[%clk 0:02:51]}  Nbd7 {[%clk 0:02:55]} 9. O-O {[%clk 0:02:51]}  e5 {[%clk 0:02:54]} 10. dxe5 {[%clk 0:02:42]}  dxe5 {[%clk 0:02:54]} 11. Bxe5 {[%clk 0:02:33]}  Nxe5 {[%clk 0:02:54]} 12. Nxe5 {[%clk 0:02:33]}  O-O {[%clk 0:02:54]} 13. Be2 {[%clk 0:02:19]}  Qc7 {[%clk 0:02:41]} 14. Ng4 {[%clk 0:02:15]}  Rad8 {[%clk 0:02:38]} 15. Nxf6+ {[%clk 0:02:14]}  Bxf6 {[%clk 0:02:38]} 16. Qc2 {[%clk 0:02:12]}  Qd7 {[%clk 0:02:24]} 17. Rad1 {[%clk 0:02:09]}  Qe6 {[%clk 0:02:25]} 18. a3 {[%clk 0:02:00]}  g6 {[%clk 0:02:23]} 19. Bf3 {[%clk 0:02:00]}  Ba6 {[%clk 0:02:23]} 20. c4 {[%clk 0:01:52]}  Qe5 {[%clk 0:02:15]} 21. b3 {[%clk 0:01:47]}  Bc8 {[%clk 0:02:14]} 22. Bd5 {[%clk 0:01:45]}  Bf5 {[%clk 0:02:13]} 23. e4 {[%clk 0:01:43]}  Bc8 {[%clk 0:01:50]} 24. f4 {[%clk 0:01:39]}  Qb2 {[%clk 0:01:49]} 25. Qxb2 {[%clk 0:01:34]}  Bxb2 {[%clk 0:01:50]} 26. a4 {[%clk 0:01:17]}  Kg7 {[%clk 0:01:50]} 27. Nf3 {[%clk 0:01:14]}  f6 {[%clk 0:01:49]} 28. Rf2 {[%clk 0:01:12]}  Ba3 {[%clk 0:01:49]} 29. g4 {[%clk 0:01:10]}  h6 {[%clk 0:01:44]} 30. Kg2 {[%clk 0:01:08]}  g5 {[%clk 0:01:44]} 31. fxg5 {[%clk 0:01:02]}  fxg5 {[%clk 0:01:39]} 32. Rdf1 {[%clk 0:00:49]}  Bb4 {[%clk 0:01:36]} 33. Ne5 {[%clk 0:00:45]}  Bc3 {[%clk 0:01:35]} 34. Rf7+ {[%clk 0:00:42]}  Rxf7 {[%clk 0:01:29]} 35. Rxf7+ {[%clk 0:00:43]}  Kg8 {[%clk 0:01:28]} 36. Re7+ {[%clk 0:00:41]} 1-0


[Site "https://www.chess.com"]

[Event "Titled Tuesday Blitz June 8 2021"]
[White "Tabatabaei, M. Amin"]
[Black "Kamsky, Gata"]
[WhiteFideId "12521213"]
[BlackFideId "2000024"]
[WhiteElo "2555"]
[BlackElo "2644"]
[Result "1-0"]
[Round "11"]
[TimeControl "180+1"]
[Date "2021.06.08"]
[WhiteClock "0:00:42"]
[BlackClock "0:00:41"]

1. e4 {[%clk 0:02:55]}  e5 {[%clk 0:02:55]} 2. Nf3 {[%clk 0:02:55]}  Nc6 {[%clk 0:02:55]} 3. Bb5 {[%clk 0:02:55]}  a6 {[%clk 0:02:55]} 4. Ba4 {[%clk 0:02:56]}  Nf6 {[%clk 0:02:55]} 5. O-O {[%clk 0:02:56]}  Be7 {[%clk 0:02:55]} 6. Re1 {[%clk 0:02:56]}  b5 {[%clk 0:02:54]} 7. Bb3 {[%clk 0:02:57]}  d6 {[%clk 0:02:55]} 8. c3 {[%clk 0:02:57]}  O-O {[%clk 0:02:53]} 9. h3 {[%clk 0:02:57]}  Nb8 {[%clk 0:02:53]} 10. d4 {[%clk 0:02:57]}  Nbd7 {[%clk 0:02:54]} 11. Nbd2 {[%clk 0:02:56]}  Bb7 {[%clk 0:02:54]} 12. Bc2 {[%clk 0:02:57]}  Re8 {[%clk 0:02:54]} 13. Nf1 {[%clk 0:02:57]}  Bf8 {[%clk 0:02:54]} 14. Ng3 {[%clk 0:02:56]}  g6 {[%clk 0:02:55]} 15. Bg5 {[%clk 0:02:56]}  h6 {[%clk 0:02:50]} 16. Bd2 {[%clk 0:02:56]}  h5 {[%clk 0:02:34]} 17. a4 {[%clk 0:02:53]}  c5 {[%clk 0:02:32]} 18. d5 {[%clk 0:02:49]}  c4 {[%clk 0:02:32]} 19. Be3 {[%clk 0:02:30]}  Nc5 {[%clk 0:02:22]} 20. Ng5 {[%clk 0:02:27]}  Bg7 {[%clk 0:02:08]} 21. Qf3 {[%clk 0:02:27]}  Qc7 {[%clk 0:02:03]} 22. Nf1 {[%clk 0:02:21]}  Rab8 {[%clk 0:01:58]} 23. axb5 {[%clk 0:02:14]}  axb5 {[%clk 0:01:58]} 24. Nd2 {[%clk 0:01:59]}  Bc8 {[%clk 0:01:56]} 25. Ra2 {[%clk 0:01:55]}  Bd7 {[%clk 0:01:54]} 26. Rea1 {[%clk 0:01:55]}  Rec8 {[%clk 0:01:46]} 27. Ra7 {[%clk 0:01:38]}  Rb7 {[%clk 0:01:43]} 28. R7a5 {[%clk 0:01:37]}  Na4 {[%clk 0:01:28]} 29. Ra6 {[%clk 0:01:14]}  Nxb2 {[%clk 0:01:26]} 30. Qg3 {[%clk 0:01:12]}  Nd3 {[%clk 0:01:21]} 31. Ra7 {[%clk 0:01:04]}  Rcb8 {[%clk 0:01:16]} 32. Rxb7 {[%clk 0:01:04]}  Rxb7 {[%clk 0:01:15]} 33. Ra8+ {[%clk 0:01:04]}  Rb8 {[%clk 0:01:15]} 34. Ra7 {[%clk 0:01:05]}  Qc8 {[%clk 0:01:10]} 35. Qh4 {[%clk 0:00:58]}  Ra8 {[%clk 0:01:08]} 36. Rxa8 {[%clk 0:00:54]}  Qxa8 {[%clk 0:01:07]} 37. Ngf3 {[%clk 0:00:52]}  Qa1+ {[%clk 0:01:05]} 38. Nb1 {[%clk 0:00:45]}  Qb2 {[%clk 0:01:03]} 39. Bxd3 {[%clk 0:00:46]}  cxd3 {[%clk 0:01:03]} 40. Nfd2 {[%clk 0:00:44]}  b4 {[%clk 0:00:55]} 41. cxb4 {[%clk 0:00:43]}  Qxb4 {[%clk 0:00:54]} 42. Bg5 {[%clk 0:00:44]}  Nh7 {[%clk 0:00:50]} 43. Be7 {[%clk 0:00:44]}  f6 {[%clk 0:00:47]} 44. Qg3 {[%clk 0:00:44]}  Kf7 {[%clk 0:00:45]} 45. Bd8 {[%clk 0:00:44]}  Bb5 {[%clk 0:00:43]} 46. Qe3 {[%clk 0:00:43]}  Qa5 {[%clk 0:00:41]} 47. Bxa5 {[%clk 0:00:42]} 1-0


[Site "https://www.chess.com"]